[Event "DVM U14w 2019"]
[Site "Neumuenster"]
[Date "2019.12.27"]
[Round "1"]
[White "Zhou, Lepu Coco"]
[Black "Winkler, Sarah"]
[Result "*"]
[ECO "C78"]
[WhiteElo "1892"]
[BlackElo "1307"]
[Annotator "NA RC"]
[PlyCount "85"]
[EventDate "2019.12.27"]
[EventType "team-tourn"]
[EventRounds "7"]
[EventCountry "GER"]
[SourceTitle "playchess.com"]
[Source "ChessBase"]
[SourceQuality "1"]
[WhiteTeam "USV Halle"]
[BlackTeam "SK Tarrasch 1945 München"]
[TimeControl "40/5400+30:1800+30"]

1. e4 {[%emt 0:00:00]} e5 {[%emt 0:00:00]} 2. Nf3 {[%emt 0:00:00]} Nc6 {[%emt 0:00:00]} 3. Bb5 {[%emt 0:00:00]} a6 {[%emt 0:00:09]} 4. Ba4 {[%emt 0:00:00]} Nf6 {[%emt 0:00:15]} 5. O-O {[%emt 0:00:00]} Bc5 {[%emt 0:00:34]} 6. c3 {[%emt 0:00:09]} b5 {[%emt 0:00:21]} 7. Bb3 {[%emt 0:00:10]} d6 {[%emt 0:01:52]} 8. d4 {[%emt 0:00:20]} exd4 {[%emt 0:03:18]} 9. cxd4 {[%emt 0:00:12]} Bb6 {[%emt 0:00:57]} 10. h3 {[%emt 0:00:24]} O-O {[%emt 0:00:21] unterminated} 11. Nc3 {[%emt 0:01:01] C78: Ruy Lopez: Archangelsk and Möller Defences} b4 {[%emt 0:02:58]} 12. Ne2 $146 {[%emt 0:00:14] unterminated} ({Predecessor:} 12. Nd5 Nxd5 13. Bxd5 Bd7 14. Bg5 Qe8 15. Rc1 Rb8 16. Re1 Ne7 17. Bc4 Ng6 18. Bxa6 h6 {½-½ (43) Venkat,S (2216)-Deshmukh,A (2271) Gurgaon 2010}) 12... Bb7 {[%emt 0:03:50]} 13. Ng3 {[%emt 0:01:37] unterminated} Re8 {[%emt 0:02:38] unterminated} 14. Re1 {[%emt 0:05:35] unterminated} Qd7 {[%emt 0:06:04]} 15. Ba4 {[%emt 0:01:02] unterminated} d5 16. Ne5 Qe6 {[%emt 0:04:45] unterminated} 17. Bf4 {[%emt 0:04:02] unterminated} Rec8 {[%emt 0:03:13]} 18. exd5 {[%emt 0:00:30]} Qxd5 {[%emt 0:03:56] unterminated} 19. Nf5 {[%emt 0:06:00] unterminated} Kf8 {[%emt 0:05:10]} 20. Bb3 {[%emt 0:01:01]} Qb5 {[%emt 0:02:02] unterminated} 21. Rc1 {[%emt 0:14:46] unterminated} Nxe5 {[%emt 0:05:36] unterminated} 22. Rxe5 {[%emt 0:00:38]} Qd7 {[%emt 0:02:30]} 23. Ba4 {[%emt 0:01:32] unterminated} c6 {[%emt 0:05:16] unterminated} 24. Nd6 {[%emt 0:02:30] unterminated} Bc7 {[%emt 0:05:08]} 25. Nxc8 {[%emt 0:02:37] unterminated} Rxc8 {[%emt 0:03:10] unterminated} 26. Bd2 {[%emt 0:02:26]} Bxe5 {[%emt 0:01:03]} 27. dxe5 {[%emt 0:00:15]} Nd5 {[%emt 0:02:07]} 28. Bxb4+ {[%emt 0:00:35]} Kg8 {[%emt 0:02:08]} 29. Bd6 {[%emt 0:02:34]} Qe6 {[%emt 0:02:00]} 30. Qb3 {[%emt 0:02:16]} Ba8 {[%emt 0:03:48]} 31. Qd3 {[%emt 0:05:22]} Bb7 {[%emt 0:00:52]} 32. Bd1 {[%emt 0:00:49]} Rd8 {[%emt 0:01:40]} 33. Bg4 {[%emt 0:02:02]} Qh6 {[%emt 0:01:44]} 34. Rd1 {[%emt 0:01:01]} Qg5 {[%emt 0:02:30]} 35. Qb3 {[%emt 0:03:47]} Ba8 {[%emt 0:02:25]} 36. Qa3 {[%emt 0:00:13]} Bb7 {[%emt 0:01:33]} 37. Be7 {[%emt 0:00:24]} Qxe5 {[%emt 0:03:05]} 38. Bxd8 {[%emt 0:00:16]} Nf4 {[%emt 0:02:31]} 39. Ba5 {[%emt 0:03:06]} h5 {[%emt 0:02:01]} 40. Bf3 {[%emt 0:01:16]} Qg5 {[%emt 0:01:19] unterminated} 41. Be4 {[%emt 0:32:15] unterminated} g6 {[%emt 0:33:56] unterminated} 42. Bd8 {[%emt 0:07:05] unterminated} Qe5 $18 {[%emt 0:01:54] unterminated} 43. Qe7 {[%emt 0:00:48] unterminated} *

[Event "DVM U14w 2019"]
[Site "Neumuenster"]
[Date "2019.12.27"]
[Round "1"]
[White "Reuter, Elisa"]
[Black "Alferova, Emily"]
[Result "1-0"]
[ECO "C54"]
[WhiteElo "1850"]
[BlackElo "1352"]
[Annotator "NA RC"]
[PlyCount "63"]
[EventDate "2019.12.27"]
[EventType "team-tourn"]
[EventRounds "7"]
[EventCountry "GER"]
[SourceTitle "playchess.com"]
[Source "ChessBase"]
[SourceQuality "1"]
[WhiteTeam "SG Leipzig"]
[BlackTeam "SC Garching"]
[TimeControl "40/5400+30:1800+30"]

1. e4 {[%emt 0:00:00]} e5 {[%emt 0:00:00]} 2. Nf3 {[%emt 0:00:00]} Nc6 {[%emt 0:00:00]} 3. Bc4 {[%emt 0:00:00]} Bc5 {[%emt 0:00:00]} 4. c3 {[%emt 0:00:00]} Nf6 {[%emt 0:00:00]} 5. d3 {[%emt 0:00:00]} a6 {[%emt 0:00:15]} 6. Bb3 {[%emt 0:00:00]} d6 {[%emt 0:01:12]} 7. Nbd2 {[%emt 0:00:19] unterminated} Ba7 {[%emt 0:03:27]} 8. h3 {[%emt 0:02:31] unterminated} h6 {[%emt 0:02:49] C54: Giuoco Piano: 4 c3 Nf6, main lines with 5 d4 and 5 d3} 9. Nf1 {[%emt 0:03:47] unterminated} Nh5 {[%emt 0:08:40] unterminated} (9... Be6 10. Ng3 Qd7 11. Qe2 Bxb3 12. axb3 Ne7 13. O-O Ng6 14. Nf5 O-O 15. Nh2 Qe6 16. b4 Ne7 17. Ng3 Ng6 18. Nf5 Ne7 19. Ng3 Ng6 20. Nf5 Ne7 {½-½ (20) Chigaev,M (2604)-Kovalev,V (2687) Wijk aan Zee 2019}) 10. d4 {[%emt 0:22:10] unterminated} exd4 $146 {[%emt 0:04:28]} ({Predecessor:} 10... Qf6 11. Ne3 {½-½ (11) Heberla,B (2438)-Luch,M (2384) Sroda Wielkopolska 2005}) 11. Nxd4 {[%emt 0:01:42]} Nxd4 {[%emt 0:01:10]} 12. cxd4 {[%emt 0:00:42]} Nf6 {[%emt 0:00:57]} 13. Ng3 {[%emt 0:00:19]} c6 {[%emt 0:03:32]} 14. O-O {[%emt 0:01:53]} O-O {[%emt 0:01:06]} 15. Be3 {[%emt 0:01:17]} Qe7 {[%emt 0:01:49] unterminated} 16. Bc2 {[%emt 0:01:25]} Rd8 {[%emt 0:02:30] unterminated} 17. Qf3 {[%emt 0:05:53] unterminated} Re8 {[%emt 0:04:48] unterminated} 18. Rfe1 {[%emt 0:09:10] unterminated} Bd7 {[%emt 0:03:52] unterminated} 19. Rad1 {[%emt 0:08:07] unterminated} b5 {[%emt 0:05:01] unterminated} 20. Bc1 {[%emt 0:04:43] unterminated} Rad8 {[%emt 0:04:58] unterminated} 21. Bd2 {[%emt 0:07:54] unterminated} Bb6 {[%emt 0:04:28]} 22. Bc3 {[%emt 0:00:32] unterminated} Nh7 {[%emt 0:04:10]} 23. Qd3 {[%emt 0:02:30] unterminated} Nf8 {[%emt 0:07:05] unterminated} 24. e5 {[%emt 0:07:31] unterminated} Ng6 {[%emt 0:01:28] unterminated} 25. Bb4 {[%emt 0:05:12] unterminated} c5 $18 {[%emt 0:09:25]} 26. exd6 {[%emt 0:01:21]} Qxd6 {[%emt 0:02:35]} 27. Rxe8+ {[%emt 0:00:34]} Rxe8 {[%emt 0:02:12]} 28. dxc5 {[%emt 0:00:21]} Qxd3 {[%emt 0:01:23]} 29. Bxd3 {[%emt 0:00:46]} Bc7 {[%emt 0:04:06]} 30. Bxg6 {[%emt 0:00:06]} Bxg3 {[%emt 0:00:14]} 31. fxg3 {[%emt 0:00:14]} fxg6 {[%emt 0:00:19]} 32. Rxd7 {[%emt 0:00:03] normal} 1-0

[Event "DVM U14w 2019"]
[Site "Neumuenster"]
[Date "2019.12.27"]
[Round "1"]
[White "Werner, Rosalie"]
[Black "Stepanjan, Marianne"]
[Result "*"]
[ECO "B82"]
[WhiteElo "1674"]
[BlackElo "1414"]
[Annotator "NA RC"]
[PlyCount "48"]
[EventDate "2019.12.27"]
[EventType "team-tourn"]
[EventRounds "7"]
[EventCountry "GER"]
[SourceTitle "playchess.com"]
[Source "ChessBase"]
[SourceQuality "1"]
[WhiteTeam "VSG 1880 Offenbach"]
[BlackTeam "TuRa Harksheide Norderstedt"]
[TimeControl "40/5400+30:1800+30"]

1. e4 {[%emt 0:00:00]} c5 {[%emt 0:00:00]} 2. Nf3 {[%emt 0:00:00]} d6 {[%emt 0:00:00]} 3. d4 {[%emt 0:00:00]} cxd4 {[%emt 0:00:00]} 4. Nxd4 {[%emt 0:00:00]} Nf6 {[%emt 0:00:09]} 5. Nc3 {[%emt 0:00:00]} e6 {[%emt 0:00:05]} 6. f4 {[%emt 0:01:36]} a6 {[%emt 0:01:27]} 7. Be2 {[%emt 0:00:38]} Qc7 {[%emt 0:01:40]} 8. O-O {[%emt 0:03:02]} Be7 {[%emt 0:01:56]} 9. Be3 {[%emt 0:02:18]} O-O {[%emt 0:00:47]} 10. Qe1 {[%emt 0:04:51]} e5 {[%emt 0:00:52]} 11. Nb3 {[%emt 0:10:41]} Nc6 {[%emt 0:04:27]} 12. f5 {[%emt 0:10:32]} b5 {[%emt 0:06:29]} 13. Qg3 {[%emt 0:05:35]} Rd8 {[%emt 0:02:26]} 14. Bh6 {[%emt 0:11:11]} Bf8 {[%emt 0:02:40]} 15. Nd5 {[%emt 0:17:42]} Nxd5 {[%emt 0:04:27]} 16. exd5 {[%emt 0:00:07]} Nb4 {[%emt 0:01:41]} 17. f6 {[%emt 0:01:41] unterminated} Qxc2 {[%emt 0:06:39] unterminated} 18. Bh5 {[%emt 0:09:01] unterminated} Bf5 {[%emt 0:16:30]} 19. fxg7 {[%emt 0:03:08] unterminated} Be7 {[%emt 0:00:49] unterminated} 20. Rf2 {[%emt 0:04:44] unterminated} Qe4 {[%emt 0:05:16] unterminated} 21. Bxf7+ {[%emt 0:04:59]} Kxf7 {[%emt 0:02:54] unterminated} 22. Qh3 {[%emt 0:02:06]} Kg6 {[%emt 0:02:47] unterminated} 23. g4 {[%emt 0:03:36] unterminated} Bxg4 {[%emt 0:08:15] unterminated} 24. Rg2 {[%emt 0:01:09] unterminated} Kf5 {[%emt 0:13:29] unterminated} *

[Event "DVM U14w 2019"]
[Site "Neumuenster"]
[Date "2019.12.27"]
[Round "1"]
[White "Prinzen, Siri Marleen"]
[Black "Dietz, Kristin"]
[Result "1/2-1/2"]
[ECO "B21"]
[WhiteElo "1631"]
[BlackElo "1946"]
[Annotator "NA RC"]
[PlyCount "115"]
[EventDate "2019.12.27"]
[EventType "team-tourn"]
[EventRounds "7"]
[EventCountry "GER"]
[SourceTitle "playchess.com"]
[Source "ChessBase"]
[SourceQuality "1"]
[WhiteTeam "SK Tarrasch 1945 München"]
[BlackTeam "USV Halle"]
[TimeControl "40/5400+30:1800+30"]

1. e4 {[%emt 0:00:00]} c5 {[%emt 0:00:00]} 2. d4 {[%emt 0:00:00]} cxd4 {[%emt 0:00:00]} 3. c3 {[%emt 0:00:00]} g6 {[%emt 0:02:46]} 4. cxd4 {[%emt 0:00:35]} d5 {[%emt 0:00:10] unterminated} 5. e5 {[%emt 0:02:22]} Nc6 $11 {[%emt 0:00:27]} 6. h3 {[%emt 0:04:36]} Nh6 7. Nf3 {[%emt 0:07:38]} Nf5 {[%emt 0:03:34]} 8. Bb5 {[%emt 0:04:45]} Bg7 {[%emt 0:05:03]} 9. Nc3 {[%emt 0:02:18]} e6 {[%emt 0:01:08]} 10. O-O {[%emt 0:05:07]} O-O {[%emt 0:00:10]} 11. Bxc6 {[%emt 0:02:30]} bxc6 {[%emt 0:00:09]} 12. Na4 {[%emt 0:00:56]} f6 {[%emt 0:00:58]} 13. Bf4 {[%emt 0:02:55]} fxe5 {[%emt 0:14:00]} 14. Bxe5 {[%emt 0:00:57]} Nh4 {[%emt 0:00:33]} 15. Nxh4 {[%emt 0:03:35]} Qxh4 {[%emt 0:00:21]} 16. Bxg7 {[%emt 0:02:29]} Kxg7 {[%emt 0:00:14]} 17. Nc5 {[%emt 0:03:36]} Rb8 {[%emt 0:00:57]} 18. Qd2 {[%emt 0:02:44]} Qf4 {[%emt 0:04:58]} 19. Rad1 {[%emt 0:05:07]} Qxd2 {[%emt 0:03:23]} 20. Rxd2 {[%emt 0:00:20]} Rb5 {[%emt 0:00:39]} 21. Re1 {[%emt 0:02:29]} Re8 {[%emt 0:00:50]} 22. f4 {[%emt 0:03:43]} Kf6 {[%emt 0:04:36]} 23. Kf2 {[%emt 0:05:09]} Ke7 {[%emt 0:01:29]} 24. b3 {[%emt 0:03:51]} Kd6 {[%emt 0:00:19]} 25. Rc1 {[%emt 0:02:28]} Rf8 {[%emt 0:01:03]} 26. Ke3 {[%emt 0:01:03]} Bd7 {[%emt 0:11:25]} 27. Rdc2 {[%emt 0:03:24]} Rb6 {[%emt 0:03:13]} 28. Nd3 {[%emt 0:06:06]} Rb7 {[%emt 0:03:26]} 29. Nc5 {[%emt 0:02:08]} Rc7 {[%emt 0:00:13]} 30. Na6 {[%emt 0:00:41]} Rcc8 {[%emt 0:00:18]} 31. Nc5 {[%emt 0:00:47]} Rf7 {[%emt 0:02:27]} 32. g3 {[%emt 0:05:48]} g5 {[%emt 0:08:59]} 33. a3 {[%emt 0:07:21]} gxf4+ {[%emt 0:02:30]} 34. gxf4 {[%emt 0:00:04]} Rg7 {[%emt 0:00:26]} 35. Kf3 {[%emt 0:00:41]} Rcg8 {[%emt 0:01:43]} 36. h4 {[%emt 0:03:00]} Be8 {[%emt 0:02:15]} 37. Re1 {[%emt 0:02:45]} Bf7 {[%emt 0:05:57]} 38. Rf2 {[%emt 0:03:24]} Rg3+ {[%emt 0:01:27]} 39. Ke2 {[%emt 0:00:02]} R8g4 {[%emt 0:03:15]} 40. Rh1 {[%emt 0:00:27]} Rc3 {[%emt 0:00:28]} 41. Kd2 {[%emt 0:31:28]} Rgg3 {[%emt 0:30:15]} 42. Rc1 {[%emt 0:01:07]} Rxc1 {[%emt 0:00:44]} 43. Kxc1 {[%emt 0:00:08]} Rg4 {[%emt 0:00:59]} 44. Kd2 {[%emt 0:00:00]} Rxh4 {[%emt 0:00:00]} 45. Kc3 {[%emt 0:00:00]} Rh3+ {[%emt 0:00:00]} 46. Kb4 {[%emt 0:00:00]} Rg3 {[%emt 0:00:00]} 47. Ka5 {[%emt 0:00:00]} h5 {[%emt 0:00:00]} 48. Ka6 {[%emt 0:00:00]} h4 {[%emt 0:00:00]} 49. f5 {[%emt 0:00:00]} h3 {[%emt 0:00:00]} 50. fxe6 {[%emt 0:00:00]} Bxe6 {[%emt 0:00:00]} 51. Rf6 {[%emt 0:00:00]} Re3 {[%emt 0:00:00]} 52. Rh6 {[%emt 0:00:00]} Ke7 {[%emt 0:00:00]} 53. Nxe6 {[%emt 0:00:00]} Rxe6 {[%emt 0:00:00]} 54. Rxh3 {[%emt 0:00:00]} c5+ {[%emt 0:00:00]} 55. Kxa7 {[%emt 0:00:00]} cxd4 {[%emt 0:00:00]} 56. Rd3 {[%emt 0:00:00]} Re3 {[%emt 0:00:00]} 57. Rxd4 {[%emt 0:00:00]} Rxb3 {[%emt 0:00:00]} 58. Rxd5 {[%emt 0:00:00] normal} 1/2-1/2

[Event "DVM U14w 2019"]
[Site "Neumuenster"]
[Date "2019.12.27"]
[Round "1"]
[White "Zöllner, Bente"]
[Black "Modali, Nikhilamrutha"]
[Result "1-0"]
[ECO "E12"]
[WhiteElo "1630"]
[BlackElo "1112"]
[Annotator "NA RC"]
[PlyCount "33"]
[EventDate "2019.12.27"]
[EventType "team-tourn"]
[EventRounds "7"]
[EventCountry "GER"]
[SourceTitle "playchess.com"]
[Source "ChessBase"]
[SourceQuality "1"]
[WhiteTeam "SC Papenburg"]
[BlackTeam "Hamburger SK"]
[TimeControl "40/5400+30:1800+30"]

1. d4 {[%emt 0:00:00]} Nf6 {[%emt 0:00:00]} 2. c4 {[%emt 0:00:00]} e6 {[%emt 0:00:00]} 3. Nf3 {[%emt 0:00:00]} b6 {[%emt 0:00:00]} 4. Bg5 {[%emt 0:00:07]} Be7 {[%emt 0:00:30]} 5. e3 {[%emt 0:00:22]} h6 {[%emt 0:00:55]} 6. Bh4 {[%emt 0:00:14]} Bb7 {[%emt 0:00:23]} 7. Bd3 {[%emt 0:00:48]} Na6 {[%emt 0:02:32]} 8. a3 {[%emt 0:01:10]} c5 {[%emt 0:03:06]} 9. Nc3 {[%emt 0:02:13]} Rc8 {[%emt 0:01:38]} 10. Rc1 {[%emt 0:02:34]} d5 {[%emt 0:06:37]} 11. cxd5 {[%emt 0:01:05]} exd5 {[%emt 0:00:39]} 12. Qa4+ {[%emt 0:01:09]} Nd7 {[%emt 0:01:24]} 13. Bxe7 {[%emt 0:01:10]} Qxe7 {[%emt 0:00:09]} 14. Bxa6 {[%emt 0:00:16]} Bxa6 {[%emt 0:00:13]} 15. Qxa6 {[%emt 0:00:08]} Nf6 {[%emt 0:02:16]} 16. Qxc8+ {[%emt 0:00:29]} Qd8 {[%emt 0:00:09]} 17. Qxd8+ {[%emt 0:00:06] normal} 1-0

[Event "DVM U14w 2019"]
[Site "Neumuenster"]
[Date "2019.12.27"]
[Round "1"]
[White "Hubert, Charlotte"]
[Black "Roncea, Andreea-Alexandra"]
[Result "1/2-1/2"]
[ECO "C47"]
[WhiteElo "1415"]
[BlackElo "1591"]
[Annotator "NA RC"]
[PlyCount "54"]
[EventDate "2019.12.27"]
[EventType "team-tourn"]
[EventRounds "7"]
[EventCountry "GER"]
[SourceTitle "playchess.com"]
[Source "ChessBase"]
[SourceQuality "1"]
[WhiteTeam "Hamburger SK"]
[BlackTeam "SC Papenburg"]
[TimeControl "40/5400+30:1800+30"]

1. e4 {[%emt 0:00:00]} e5 {[%emt 0:00:00]} 2. Nf3 {[%emt 0:00:00]} Nc6 {[%emt 0:00:00]} 3. Nc3 {[%emt 0:00:00]} Nf6 {[%emt 0:00:00]} 4. d4 {[%emt 0:00:00]} exd4 {[%emt 0:00:05]} 5. Nxd4 {[%emt 0:00:06]} Bb4 {[%emt 0:00:08]} 6. Nxc6 {[%emt 0:00:11]} bxc6 {[%emt 0:00:13]} 7. Bd3 {[%emt 0:00:11]} d5 {[%emt 0:00:21]} 8. exd5 {[%emt 0:00:12]} cxd5 {[%emt 0:00:19]} 9. O-O {[%emt 0:00:19]} O-O {[%emt 0:00:06]} 10. Bg5 {[%emt 0:00:10]} c6 {[%emt 0:00:14]} 11. Na4 {[%emt 0:01:52]} h6 {[%emt 0:00:34]} 12. Bh4 {[%emt 0:01:20]} Re8 {[%emt 0:00:43]} 13. c4 {[%emt 0:02:23]} Bd6 {[%emt 0:03:30]} 14. b3 {[%emt 0:02:51]} Be5 {[%emt 0:08:12]} 15. Rc1 {[%emt 0:02:45]} Qd6 {[%emt 0:04:19]} 16. h3 {[%emt 0:05:13]} g5 {[%emt 0:05:11]} 17. Bg3 {[%emt 0:02:59]} Bxg3 {[%emt 0:04:17]} 18. fxg3 {[%emt 0:00:32]} Re3 {[%emt 0:06:35]} 19. Rf3 {[%emt 0:06:22]} Rxf3 {[%emt 0:04:02]} 20. Qxf3 {[%emt 0:01:03]} g4 {[%emt 0:04:42]} 21. hxg4 {[%emt 0:05:31]} Bxg4 {[%emt 0:05:52]} 22. Qf4 {[%emt 0:02:48]} Qxf4 {[%emt 0:02:37]} 23. gxf4 {[%emt 0:00:06]} Nh5 {[%emt 0:02:26]} 24. Rf1 {[%emt 0:07:59]} Rd8 {[%emt 0:05:05]} 25. Nc5 {[%emt 0:10:24]} dxc4 {[%emt 0:05:41]} 26. Bxc4 {[%emt 0:00:15]} Rd2 {[%emt 0:04:25]} 27. a3 {[%emt 0:01:25]} Rd1 {[%emt 0:11:59] normal} 1/2-1/2

[Event "DVM U14w 2019"]
[Site "Neumuenster"]
[Date "2019.12.27"]
[Round "1"]
[White "Nguyen, Jenny Ha-Linh"]
[Black "Frowein, Katja"]
[Result "1-0"]
[ECO "B22"]
[WhiteElo "1387"]
[BlackElo "1271"]
[Annotator "NA RC"]
[PlyCount "79"]
[EventDate "2019.12.27"]
[EventType "team-tourn"]
[EventRounds "7"]
[EventCountry "GER"]
[SourceTitle "playchess.com"]
[Source "ChessBase"]
[SourceQuality "1"]
[WhiteTeam "SG Leipzig"]
[BlackTeam "SC Garching"]
[TimeControl "40/5400+30:1800+30"]

1. e4 {[%emt 0:00:00]} c5 {[%emt 0:00:00]} 2. c3 {[%emt 0:00:00]} d6 {[%emt 0:00:00]} 3. d4 {[%emt 0:00:00]} cxd4 {[%emt 0:00:00]} 4. cxd4 {[%emt 0:00:00]} Nf6 {[%emt 0:00:03]} 5. Nc3 {[%emt 0:00:00]} g6 {[%emt 0:00:31]} 6. Nf3 {[%emt 0:01:17]} Bg7 {[%emt 0:00:38]} 7. Bb5+ {[%emt 0:01:00]} Bd7 {[%emt 0:00:19]} 8. Bxd7+ {[%emt 0:00:22]} Qxd7 {[%emt 0:00:36]} 9. O-O {[%emt 0:00:09]} O-O {[%emt 0:00:57]} 10. Bg5 {[%emt 0:06:20]} Nc6 {[%emt 0:03:43]} 11. Qd2 {[%emt 0:01:30]} Rfe8 {[%emt 0:04:11]} 12. Rac1 {[%emt 0:02:54]} Rac8 {[%emt 0:01:55]} 13. Rfd1 {[%emt 0:05:22]} a6 14. Bh6 {[%emt 0:03:27]} e6 {[%emt 0:22:34]} 15. Bxg7 {[%emt 0:00:32]} Kxg7 {[%emt 0:00:08]} 16. Qe2 {[%emt 0:01:08]} Qc7 {[%emt 0:05:27]} 17. Qd2 {[%emt 0:10:33]} b5 {[%emt 0:04:49]} 18. d5 {[%emt 0:00:42]} exd5 {[%emt 0:02:10]} 19. exd5 {[%emt 0:00:15]} Ne5 {[%emt 0:00:38]} 20. Nxe5 {[%emt 0:03:07]} Rxe5 {[%emt 0:00:54]} 21. Re1 {[%emt 0:19:31]} b4 {[%emt 0:03:27]} 22. Ne2 {[%emt 0:04:48]} Qb7 {[%emt 0:04:20]} 23. Nf4 {[%emt 0:03:41]} Rxc1 {[%emt 0:02:10]} 24. Qxc1 {[%emt 0:02:50]} Rxe1+ {[%emt 0:01:47]} 25. Qxe1 {[%emt 0:00:06]} Nxd5 {[%emt 0:00:35]} 26. Nd3 {[%emt 0:02:35]} b3 {[%emt 0:01:36]} 27. axb3 {[%emt 0:01:21]} Qxb3 {[%emt 0:00:18]} 28. Qe2 {[%emt 0:02:04]} Nb4 {[%emt 0:01:47]} 29. Nxb4 {[%emt 0:01:53]} Qxb4 {[%emt 0:00:18]} 30. Qxa6 {[%emt 0:01:38]} Qxb2 {[%emt 0:00:11]} 31. g3 {[%emt 0:01:13]} d5 {[%emt 0:00:25]} 32. Qd3 {[%emt 0:01:11]} d4 {[%emt 0:00:28]} 33. Kf1 {[%emt 0:01:51]} Kf6 {[%emt 0:00:57]} 34. f4 {[%emt 0:03:30]} g5 {[%emt 0:01:19]} 35. fxg5+ {[%emt 0:01:47]} Kxg5 {[%emt 0:00:23]} 36. Qxh7 {[%emt 0:02:36]} Qc1+ {[%emt 0:00:25]} 37. Kg2 {[%emt 0:00:21]} Qd2+ {[%emt 0:00:27]} 38. Kh3 {[%emt 0:00:47]} Qf2 {[%emt 0:01:20]} 39. Qg7+ {[%emt 0:01:20]} Kh5 {[%emt 0:00:59]} 40. g4# {normal} 1-0

[Event "DVM U14w 2019"]
[Site "Neumuenster"]
[Date "2019.12.27"]
[Round "1"]
[White "Dixon, Laura Michaela"]
[Black "Chen, Michelle"]
[Result "*"]
[ECO "C53"]
[WhiteElo "1310"]
[BlackElo "1072"]
[Annotator "NA RC"]
[PlyCount "68"]
[EventDate "2019.12.27"]
[EventType "team-tourn"]
[EventRounds "7"]
[EventCountry "GER"]
[SourceTitle "playchess.com"]
[Source "ChessBase"]
[SourceQuality "1"]
[WhiteTeam "VSG 1880 Offenbach"]
[BlackTeam "TuRa Harksheide Norderstedt"]
[TimeControl "40/5400+30:1800+30"]

1. e4 {[%emt 0:00:00]} e5 {[%emt 0:00:00]} 2. Nf3 {[%emt 0:00:00]} Nc6 {[%emt 0:00:00]} 3. Bc4 {[%emt 0:00:00]} Bc5 {[%emt 0:00:22]} 4. c3 {[%emt 0:00:19]} Nge7 {[%emt 0:08:05]} 5. d4 {[%emt 0:01:30]} exd4 {[%emt 0:01:40]} 6. cxd4 {[%emt 0:00:19]} Bb4+ {[%emt 0:00:27]} 7. Bd2 {[%emt 0:00:40]} Bxd2+ 8. Nbxd2 {[%emt 0:00:35]} d5 {[%emt 0:08:34]} 9. Bb5 {[%emt 0:14:33]} Bg4 {[%emt 0:05:46]} 10. e5 {[%emt 0:04:54]} a6 {[%emt 0:01:20]} 11. Be2 {[%emt 0:04:00]} Nf5 {[%emt 0:02:05]} 12. Nb3 {[%emt 0:01:50]} Qe7 {[%emt 0:05:14]} 13. Qd2 {[%emt 0:16:31]} Bxf3 {[%emt 0:01:59]} 14. Bxf3 {[%emt 0:00:27]} Qb4 {[%emt 0:07:04]} 15. Qxb4 Nxb4 {[%emt 0:00:55]} 16. O-O {[%emt 0:03:28]} O-O {[%emt 0:04:40]} 17. a3 {[%emt 0:01:33]} Nc6 {[%emt 0:01:52]} 18. Bxd5 {[%emt 0:01:20]} Nfxd4 {[%emt 0:04:17]} 19. Nxd4 {[%emt 0:00:56]} Nxd4 {[%emt 0:01:18]} 20. Bxb7 {[%emt 0:00:43]} Rab8 {[%emt 0:01:38]} 21. Bxa6 {[%emt 0:00:28]} Rxb2 {[%emt 0:00:55]} 22. a4 {[%emt 0:05:16]} Re8 {[%emt 0:01:02] unterminated} 23. f4 {[%emt 0:02:19] unterminated} Ra8 {[%emt 0:04:46] unterminated} 24. Bd3 {[%emt 0:05:15]} Rb4 {[%emt 0:01:01] unterminated} 25. Rfb1 {[%emt 0:09:56] unterminated} Rxb1+ {[%emt 0:08:10]} 26. Rxb1 {[%emt 0:00:12]} g6 {[%emt 0:02:52] unterminated} 27. Ra1 {[%emt 0:02:17]} Kf8 {[%emt 0:02:43] unterminated} 28. Ra2 {[%emt 0:02:33]} Nb3 {[%emt 0:02:03]} 29. Bc4 {[%emt 0:02:00] unterminated} Na5 {[%emt 0:01:01]} 30. Rc2 {[%emt 0:01:47] unterminated} Ke7 {[%emt 0:03:57]} 31. Kf2 {[%emt 0:01:27]} f6 {[%emt 0:00:41] unterminated} 32. Ke3 {[%emt 0:03:38]} Nxc4+ {[%emt 0:01:58]} 33. Rxc4 {[%emt 0:00:10] unterminated} Rc8 {[%emt 0:01:55]} 34. a5 {[%emt 0:01:14]} f5 {[%emt 0:01:12] unterminated} *